Cogmind - Beta 13 @@@ ROGUE MODE // 2024.04.09 @ 22:46:17 Player: nllptrxc Result: Destroyed by P-80 Master with Gamma Rifle Performance ------------- Evolutions (7) 3500 Regions Visited (18) 3600 Robots Destroyed (194) 970 Value Destroyed (5174) 5174 Prototype IDs (34) 680 Alien Tech Used (1) 200 Bonus (799) 799 TOTAL SCORE: 14923 Bonus ------- High Alert Combat Kills 485 Follower Combat Kills 14 Aligned with FarCom 300 Cogmind --------- Core Integrity 0/1300 Matter 173/300 Energy 100/100 System Corruption 24% Temperature Cool (0) Movement Core (50) Location -3/Research Parts ------- > --- POWER (2) -------- (None) > --- PROPULSION (6) --- (None) > --- UTILITY (11) ----- (None) > --- WEAPON (2) ------- (None) > --- INVENTORY (5) ---- Antigrav System Gamma Rifle Heavy Phase Cannon Hypervelocity Railgun Improved Datajack Peak State ------------ > --- POWER ------------ Fusion Compressor Micro Antimatter Reactor > --- PROPULSION ------- Antigrav System Antigrav System Improved Antigrav System Improved Antigrav System Improved Antigrav System Improved Antigrav System > --- UTILITY ---------- Advanced Heat Sink Large Storage Unit Machine Analyzer Enhanced Optical Array Improved Hacking Suite Advanced Drone Bay Advanced Drone Bay Advanced Drone Bay > --- WEAPON ----------- Gamma Rifle Gamma Rifle > --- INVENTORY -------- Antigrav System Advanced Heat Sink Triangulator Corruption Screen Advanced Drone Bay Advanced Drone Bay Heavy Phase Cannon Hypervelocity Railgun Gamma Bomb Array Dirty Datajack Improved Datajack Scythe Spear [Rating: 132] Favorites ----------- Power Light Nuclear Core Engine Reinforced Ion Engine Power Core Light Nuclear Core Reactor Micro Antimatter Reactor Propulsion Light Treads Treads Light Treads Leg Flexi-carbon Leg Hover Unit Improved Antigrav System Flight Unit Cooled VTOL Module Utility Advanced Hacking Suite Device Structural Scanner Storage Huge Storage Unit Processor Enhanced Optical Array Hackware Advanced Hacking Suite Protection Medium Armor Plating Weapon Minigun Energy Gun Medium Laser Energy Cannon Heavy Particle Cannon Ballistic Gun Minigun Launcher Grenade Launcher Special Weapon Mining Laser Slashing Weapon Katana Piercing Weapon Spear Special Melee Weapon Datajack Build | -11 -10 -10 -9 -9 -9 -8 -8 -7 -7 -7 -6 -5 -5 -5 -5 -4 -4 -3 ------- Run | Yrd Mat Min Mat Min Exi Min Mat Fac Was Fac Fac Fac Upp Upp Zhi Pro Fac Res Slots Evolved 14 | . . . 2 . . . 2 2 . . 2 2 . . . . 2 2 Power 1 | . . . . . . . . . . . . . . . . . . 1 Propulsion 4 | . . . 1 . . . 1 . . . . . . . . . 1 1 Utility 9 | . . . 1 . . . 1 2 . . 2 2 . . . . 1 . Weapon . | . . . . . . . . . . . . . . . . . . . Parts Attached 217 | 7 7 7 47 8 . . 26 31 1 7 15 7 2 1 . 2 6 43 Power 16 | 1 1 . 3 . . . 2 1 . . 1 3 . . . . . 4 Engine 5 | 1 1 . 3 . . . . . . . . . . . . . . . Core 8 | . . . . . . . 2 1 . . 1 3 . . . . . 1 Reactor 3 | . . . . . . . . . . . . . . . . . . 3 Propulsion 66 | 2 . 2 21 1 . . 9 9 . 1 6 1 . . . . 1 13 Treads 34 | 2 . 2 20 1 . . 9 . . . . . . . . . . . Leg 3 | . . . . . . . . . . . . . . . . . . 3 Wheel . | . . . . . . . . . . . . . . . . . . . Hover 7 | . . . . . . . . . . . . . . . . . . 7 Flight 22 | . . . 1 . . . . 9 . 1 6 1 . . . . 1 3 Utility 82 | 2 2 3 11 2 . . 8 17 1 6 6 3 2 . . 1 5 13 Device 25 | 1 . 3 1 1 . . . 4 . 4 1 . . . . . 1 9 Storage 7 | 1 2 . . . . . . 1 . 1 . 1 . . . . . 1 Processor 6 | . . . . . . . . 2 1 . . . 1 . . . 2 . Hackware 16 | . . . . . . . . 8 . 1 4 2 . . . . 1 . Protection 28 | . . . 10 1 . . 8 2 . . 1 . 1 . . 1 1 3 Artifact . | . . . . . . . . . . . . . . . . . . . Weapon 53 | 2 4 2 12 5 . . 7 4 . . 2 . . 1 . 1 . 13 Energy Gun 5 | 1 . 1 . . . . . . . . . . . . . . . 3 Energy Cannon 12 | . . . 6 2 . . 1 . . . . . . . . . . 3 Ballistic Gun 12 | 1 2 1 3 2 . . 3 . . . . . . . . . . . Ballistic Cannon . | . . . . . . . . . . . . . . . . . . . Launcher 11 | . . . 2 1 . . 2 . . . 1 . . 1 . 1 . 3 Special Weapon 2 | . 2 . . . . . . . . . . . . . . . . . Impact Weapon . | . . . . . . . . . . . . . . . . . . . Slashing Weapon 6 | . . . 1 . . . 1 1 . . . . . . . . . 3 Piercing Weapon 4 | . . . . . . . . 2 . . 1 . . . . . . 1 Special Melee Weapon 1 | . . . . . . . . 1 . . . . . . . . . . Unidentified Prototypes 7 | . . 1 2 . . . 1 . . . 1 1 . . . . 1 . Parts Lost 50 | . . . 4 1 . . 5 9 . . 1 2 1 1 . . . 26 Power 5 | . . . 2 . . . . 1 . . . . . . . . . 2 Propulsion 16 | . . . 1 . . . 2 4 . . . . . . . . . 9 Utility 24 | . . . 1 1 . . 2 4 . . 1 2 1 1 . . . 11 Weapon 5 | . . . . . . . 1 . . . . . . . . . . 4 Highest Loss Streak 12 | . . . 1 1 . . 2 9 . . 1 2 3 1 . . . 12 To Critical Strikes . | . . . . . . . . . . . . . . . . . . . Average Slot Usage (%) 96 | . 100 100 99 99 100 100 96 91 100 95 92 94 88 88 . 82 92 76 Engine 7 | . 14 14 10 11 11 11 6 . . . . . . . . . . . Core 2 | . . . . . . . 2 6 7 7 6 5 5 5 . 5 5 1 Treads 22 | . 28 28 32 33 33 33 35 . . . . . . . . . . . Flight 7 | . . . . . . . . 27 30 30 26 23 23 23 . 23 26 12 Device 7 | . 14 14 7 5 11 11 2 2 . 7 5 5 5 5 . 5 9 11 Storage 9 | . 14 14 11 11 11 11 9 4 7 7 6 5 5 5 . 5 5 3 Processor 1 | . . . . . . . . 10 7 . . . 5 5 . 5 7 8 Hackware 9 | . . . . . . . . 21 30 30 40 47 29 28 . 23 25 13 Protection 9 | . . . 14 16 11 11 21 1 . . . . 5 5 . 5 7 2 Energy Gun 2 | . 14 14 . . . . . . . . . . . . . . . 1 Energy Cannon 4 | . . . 10 9 11 11 2 . . . . . . . . . . . Ballistic Gun 8 | . 11 14 10 12 11 11 15 . . . . . . . . . . . Piercing Weapon 1 | . . . . . . . . 8 7 7 5 5 5 5 . 5 5 . Naked Turns 15 | . . . . . . . . . . . . . . . . . . 15 Heaviest Build 109 | 13 90 94 109 109 105 105 109 97 14 18 18 18 20 20 20 26 24 82 Greatest Support 80 | 40 40 40 60 60 60 60 80 80 16 18 27 21 28 28 20 26 26 70 Greatest Overweight (x) 5 | . 2 2 5 1 1 1 1 2 . . . . . . . 1 . 2 Average Overweight (x) . | . . 2 1 1 1 1 1 . . . . . . . . . . . Largest Inventory Capacity 25 | 8 25 25 25 25 25 25 25 25 8 10 10 10 10 10 10 10 10 15 Average Capacity 19 | 7 19 25 25 25 25 25 25 7 8 9 10 10 10 10 10 10 10 14 Most Carried 25 | 2 15 23 25 24 25 25 25 25 8 10 10 10 10 10 10 10 10 15 Average Carried 18 | 1 12 20 24 23 24 25 24 6 7 8 9 9 9 9 10 9 9 10 Final Capacity 25 | 8 25 25 25 25 25 25 25 8 8 10 10 10 10 10 10 10 10 5 Final Carried 25 | 2 15 23 24 24 25 25 25 7 8 9 10 9 10 10 10 10 10 5 Class Distribution -------------------- 35% | Scavenger-Mutant 34% | Mutant 15% | Wizard-Sprinter 5% | Hacker-Sprinter 3% | Wizard-Ninja Dominant Class ---------------- Mutant | -10/Materials Mutant | -10/Mines Mutant | -9/Materials Scavenger-Mutant | -9/Mines Scavenger-Mutant | -9/Exiles Scavenger-Mutant | -8/Mines Scavenger-Mutant | -8/Materials Hacker-Sprinter | -7/Factory Hacker-Sprinter | -7/Waste Hacker-Sprinter | -7/Factory Wizard-Sprinter | -6/Factory Wizard-Sprinter | -5/Factory Wizard-Sprinter | -5/Upper Caves Wizard-Sprinter | -5/Upper Caves Wizard-Sprinter | -5/Zhirov Hacker-Sprinter | -4/Proximity Caves Wizard-Ninja | -4/Factory Wizard-Ninja | -3/Research Resources | -11 -10 -10 -9 -9 -9 -8 -8 -7 -7 -7 -6 -5 -5 -5 -5 -4 -4 -3 ----------- Run | Yrd Mat Min Mat Min Exi Min Mat Fac Was Fac Fac Fac Upp Upp Zhi Pro Fac Res Matter Collected 4609 | 309 265 190 1154 138 . . 1102 339 . . 294 . . 96 . 76 139 507 Remotely . | . . . . . . . . . . . . . . . . . . . Salvage Created 7413 | 197 265 208 3038 240 . . 2091 338 . . 243 . . 100 . 50 . 643 Parts 421 | 17 23 4 158 19 . . 112 23 . . 20 . . 9 . 4 . 32 Haulers Intercepted 10 | . 1 . 5 . . . 3 1 . . . . . . . . . . Recyclers Shooed 9 | . . 1 3 . . . 5 . . . . . . . . . . . Parts Field Recycled . | . . . . . . . . . . . . . . . . . . . Retrieved Matter . | . . . . . . . . . . . . . . . . . . . Parts Self-Destructed 9 | . . . . . . . . . . . . . . 6 . 3 . . Prevented . | . . . . . . . . . . . . . . . . . . . Kills | -11 -10 -10 -9 -9 -9 -8 -8 -7 -7 -7 -6 -5 -5 -5 -5 -4 -4 -3 ------- Run | Yrd Mat Min Mat Min Exi Min Mat Fac Was Fac Fac Fac Upp Upp Zhi Pro Fac Res Combat Hostiles Destroyed 143 | . 9 4 52 10 . . 33 5 . . 8 . . 5 . 4 . 13 Melee 21 | . . . 1 . . . . 5 . . 4 . . . . 1 . 10 Guns 61 | . 9 4 21 2 . . 25 . . . . . . . . . . . Cannons 33 | . . . 21 4 . . 8 . . . . . . . . . . . AOE 27 | . . . 9 3 . . . . . . 4 . . 5 . 3 . 3 Classes Destroyed 17 | 2 6 1 5 . . . 2 . . . . . . . . . . 1 Worker 6 | . 2 . 2 . . . 1 . . . 1 . . . . . . . Builder 4 | . 1 . . . . . 1 1 . . 1 . . . . . . . Tunneler 8 | 7 . . . . . . 1 . . . . . . . . . . . Hauler 10 | . 1 . 5 . . . 3 1 . . . . . . . . . . Recycler 21 | 1 . 2 10 1 . . 6 1 . . . . . . . . . . Mechanic 1 | . . . . . . . 1 . . . . . . . . . . . Operator 5 | . 1 . 2 . . . 1 . . . 1 . . . . . . . Watcher 8 | . 1 . 3 . . . 3 . . . 1 . . . . . . . Swarmer 50 | . 9 . 4 8 . . 7 3 . . 8 . . 2 . 4 . 5 Grunt 59 | . . . 33 2 . . 17 . . . . . . 3 . . . 4 Brawler 2 | . . . 1 . . . 1 . . . . . . . . . . . Duelist 3 | . . . 2 . . . 1 . . . . . . . . . . . Protector 2 | . . . 2 . . . . . . . . . . . . . . . Sentry 18 | . . . 10 . . . 6 2 . . . . . . . . . . Hunter 1 | . . . . . . . 1 . . . . . . . . . . . Programmer 4 | . . . . . . . . . . . . . . . . . . 4 Assembled 4 | . . 4 . . . . . . . . . . . . . . . . Best Kill Streak 10 | 3 6 2 10 4 . . 7 5 . . 5 . . 5 . 4 . 3 Combat Bots Only 10 | . 5 1 10 4 . . 6 5 . . 4 . . 5 . 4 . 3 Max Kills in Single Turn 5 | 1 1 1 5 2 . . 2 1 . . 3 . . 1 . 2 . 3 Gunslinging 1 | . . . . . . . 1 . . . . . . . . . . . Exploded 5 | . . . 5 2 . . . . . . 3 . . 1 . 2 . 3 Melee 1 | . . . 1 . . . . 1 . . 1 . . . . 1 . 1 Uniques/NPCs Destroyed . | . . . . . . . . . . . . . . . . . . . Combat | -11 -10 -10 -9 -9 -9 -8 -8 -7 -7 -7 -6 -5 -5 -5 -5 -4 -4 -3 -------- Run | Yrd Mat Min Mat Min Exi Min Mat Fac Was Fac Fac Fac Upp Upp Zhi Pro Fac Res Hostile Shots Fired 871 | . 57 6 154 46 . . 158 98 . . 29 4 4 10 . 18 2 285 Missed 242 | . 12 3 28 11 . . 31 39 . . 18 1 3 2 . 8 . 86 Damage Taken 10091 | . 366 43 1906 315 . . 1838 728 . . 156 52 20 164 . 99 45 4359 Core 2235 | . 74 . 225 29 . . 229 269 . . 45 . . 56 . . . 1308 Absorbed by Shields . | . . . . . . . . . . . . . . . . . . . Redirected to Shielding 102 | . . . . . . . . . . . . . . 18 . 5 16 63 Regen/Repaired (Parts) 487 | . . . 265 . . . 141 . . . 15 66 . . . . . . Core Remaining (%) 76 | 100 . 70 . . . 36 58 . . 61 94 . . . . 94 100 . Volleys Fired 394 | 13 37 13 142 17 . . 140 . . . 2 . . 9 . 2 . 19 Largest 2 | 2 2 2 2 2 . . 2 . . . 1 . . 1 . 1 . 1 Hottest 143 | 70 100 98 143 143 . . 93 . . . 43 . . 43 . 36 . 90 Shots Fired 740 | 26 65 26 281 32 . . 278 . . . 2 . . 9 . 2 . 19 Gun 518 | 26 59 26 160 12 . . 228 . . . . . . . . . . 7 Cannon 188 | . . . 115 18 . . 49 . . . . . . . . . . 6 Launcher 28 | . . . 6 2 . . 1 . . . 2 . . 9 . 2 . 6 Special 6 | . 6 . . . . . . . . . . . . . . . . . Kinetic 454 | 13 28 13 160 12 . . 228 . . . . . . . . . . . Thermal 251 | 13 37 13 115 18 . . 49 . . . . . . . . . . 6 Explosive 27 | . . . 6 2 . . 1 . . . 2 . . 9 . 2 . 5 Electromagnetic 8 | . . . . . . . . . . . . . . . . . . 8 Robot Hit Streak 17 | 16 6 7 17 5 . . 16 . . . . . . 3 . . . 1 Robot Miss Streak 5 | 1 4 2 5 1 . . 5 . . . . . . . . 1 . 4 Penetration Max . | . . . . . . . . . . . . . . . . . . . Secondary Targets 8 | . 1 1 2 1 . . 3 . . . . . . . . . . . Max Gunslinging Chain 1 | . 1 1 1 1 . . 1 . . . . . . . . . . . Shots Hit Robots 548 | 21 31 15 185 20 . . 187 22 . . 8 . . 1 . 2 . 56 Core Hits 298 | 9 16 9 92 12 . . 81 9 . . 13 . . 20 . 6 . 31 Critical Kills 3 | . . . 2 1 . . . . . . . . . . . . . . Critical Parts Destroyed 1 | . . . . . . . 1 . . . . . . . . . . . Critical Strikes 18 | 1 . . 4 1 . . 1 2 . . . . . . . 1 . 8 Burn 1 | 1 . . . . . . . . . . . . . . . . . . Meltdown 2 | . . . 1 1 . . . . . . . . . . . . . . Destroy 2 | . . . 1 . . . 1 . . . . . . . . . . . Sever 8 | . . . 2 . . . . 1 . . . . . . . . . 5 Impale 5 | . . . . . . . . 1 . . . . . . . 1 . 3 Melee Attacks 230 | . . . 4 . . . 1 52 . 4 36 38 . 1 . 2 14 78 Impact . | . . . . . . . . . . . . . . . . . . . Slashing 97 | . . . 4 . . . 1 30 . . . . . . . . . 62 Piercing 129 | . . . . . . . . 18 . 4 36 38 . 1 . 2 14 16 Sneak Attacks 10 | . . . . . . . . 9 . . 1 . . . . . . . Combat Hostiles . | . . . . . . . . . . . . . . . . . . . Follow-up Attacks . | . . . . . . . . . . . . . . . . . . . Damage Inflicted 14704 | 262 456 236 4695 629 . . 3484 811 . . 785 . . 991 . 300 . 2055 Guns 5388 | 262 390 236 1739 176 . . 2569 . . . . . . . . . . 16 Cannons 3095 | . . . 2029 264 . . 802 . . . . . . . . . . . Explosions 3057 | . . . 807 180 . . . . . . 484 . . 991 . 242 . 353 Melee 2926 | . . . 96 . . . . 811 . . 301 . . . . 58 . 1660 Ramming 190 | . 18 . 24 9 . . 113 . . . . . . . . . . 26 Kinetic 4886 | 126 179 97 1739 176 . . 2569 . . . . . . . . . . . Thermal 3629 | 136 259 139 2029 264 . . 802 . . . . . . . . . . . Explosive 3057 | . . . 807 180 . . . . . . 484 . . 991 . 242 . 353 Electromagnetic 16 | . . . . . . . . . . . . . . . . . . 16 Impact . | . . . . . . . . . . . . . . . . . . . Slashing 1811 | . . . 96 . . . . 478 . . . . . . . . . 1237 Piercing 1115 | . . . . . . . . 333 . . 301 . . . . 58 . 423 Highest Corruption 24 | . . . . . . . . . 1 9 . . . . . . . 24 Average Corruption 7 | . . . . . . . . . 1 7 . . . . . . . 7 Corruption Purged 5 | . . . . . . . . . . 5 . . . . . . . . Corruption Blocked . | . . . . . . . . . . . . . . . . . . . Effects 23 | . . . . . . . . . . 11 . . . . . . . 12 Message Errors 8 | . . . . . . . . . . 4 . . . . . . . 4 Matter Fused 7 | . . . . . . . . . . 3 . . . . . . . 4 Heat Flow Errors 1 | . . . . . . . . . . . . . . . . . . 1 Data Loss (minor) 4 | . . . . . . . . . . 2 . . . . . . . 2 Alerts 2 | . . . . . . . . . . 2 . . . . . . . . Misdirections 1 | . . . . . . . . . . . . . . . . . . 1 Overload Shots . | . . . . . . . . . . . . . . . . . . . Overflow Damage 326 | . 4 . 39 28 . . 18 137 . . 76 . . . . . . 24 Projectiles 70 | . 4 . 39 12 . . 15 . . . . . . . . . . . Explosions 67 | . . . . 16 . . . . . . 44 . . . . . . 7 Melee 189 | . . . . . . . 3 137 . . 32 . . . . . . 17 Knockbacks 2 | . . . . . . . 2 . . . . . . . . . . . Impact 2 | . . . . . . . 2 . . . . . . . . . . . Kinetic . | . . . . . . . . . . . . . . . . . . . Secondary . | . . . . . . . . . . . . . . . . . . . Self-Inflicted Damage 147 | . . . 89 . . . . . . . . . . . . . . 58 Shots 6 | . . . 3 . . . . . . . . . . . . . . 3 Rammed 23 | . 3 . 2 3 . . 10 . . . . . . . . . . 5 Targets Rammed 29 | . 3 . 3 3 . . 15 . . . . . . . . . . 5 Kicked . | . . . . . . . . . . . . . . . . . . . Crushed 6 | . . . 1 . . . 5 . . . . . . . . . . . Highest Temperature 468 | 36 117 108 292 147 . . 454 . 1 . 64 . 180 96 . 24 . 468 Average Temperature 58 | 12 33 40 58 64 . . 62 . 1 . 38 . 76 53 . 14 . 84 Received Heat Transfer 1956 | . . . 585 63 . . 666 75 . . . . 9 . . . 9 549 Effects 5 | . . . . . . . 2 . . . . . . . . . . 3 Shutdowns 4 | . . . . . . . 1 . . . . . . . . . . 3 Energy Bleed 1 | . . . . . . . 1 . . . . . . . . . . . Siege Activations . | . . . . . . . . . . . . . . . . . . . Robots Corrupted . | . . . . . . . . . . . . . . . . . . . Combat Hostiles . | . . . . . . . . . . . . . . . . . . . Parts Fried . | . . . . . . . . . . . . . . . . . . . Impact Corruptions 1 | . . . . . . . 1 . . . . . . . . . . . Robots Melted 2 | . . . 1 1 . . . . . . . . . . . . . . Combat Hostiles 1 | . . . . 1 . . . . . . . . . . . . . . Parts Melted 7 | 1 1 . 5 . . . . . . . . . . . . . . . Heat Transferred 6279 | 481 729 296 2960 407 . . 1406 . . . . . . . . . . . Parts Sabotaged . | . . . . . . . . . . . . . . . . . . . Parts Stolen . | . . . . . . . . . . . . . . . . . . . Parts Stripped . | . . . . . . . . . . . . . . . . . . . Power Chain Reactions . | . . . . . . . . . . . . . . . . . . . Alert | -11 -10 -10 -9 -9 -9 -8 -8 -7 -7 -7 -6 -5 -5 -5 -5 -4 -4 -3 ------- Run | Yrd Mat Min Mat Min Exi Min Mat Fac Was Fac Fac Fac Upp Upp Zhi Pro Fac Res Peak Influence 1137 | 40 211 44 1137 675 . . 522 476 164 202 230 159 . . . . 144 300 Initial 443 | . 26 39 1 443 . . . 231 134 114 . 112 . . . . 56 . Average 246 | 18 65 12 489 502 . . 220 343 146 128 38 79 . . . . 96 117 Maximum Alert Level 4 | . 1 . 4 2 . . 2 2 . 1 1 . . . . . . 1 Low Security (%) 54 | 100 94 100 12 . . 100 52 . 100 96 94 100 . . . . 100 72 Level 1 24 | . 5 . 45 20 . . 25 78 . 3 5 . . . . . . 27 Level 2 14 | . . . 17 79 . . 21 21 . . . . . . . . . . Level 3 5 | . . . 20 . . . . . . . . . . . . . . . Level 4 1 | . . . 4 . . . . . . . . . . . . . . . Level 5 . | . . . . . . . . . . . . . . . . . . . High Security . | . . . . . . . . . . . . . . . . . . . Max Security . | . . . . . . . . . . . . . . . . . . . Sterilizations 1 | . . . 1 . . . . . . . . . . . . . . . Squads Dispatched 41 | . . . 9 . . . 5 7 . 2 8 5 . 1 . . . 4 Investigation 24 | . . . 5 . . . 3 4 . 2 6 3 . . . . . 1 Extermination 6 | . . . . . . . . 1 . . 2 1 . . . . . 2 Reinforcement 8 | . . . 2 . . . 2 2 . . . 1 . . . . . 1 Assault 3 | . . . 2 . . . . . . . . . . 1 . . . . Garrison . | . . . . . . . . . . . . . . . . . . . Intercept . | . . . . . . . . . . . . . . . . . . . Searches Triggered . | . . . . . . . . . . . . . . . . . . . Construction Impeded 1 | . . . . . . . . 1 . . . . . . . . . . Haulers Reinforced 1 | . . . . . . . . 1 . . . . . . . . . . Active Scanning Responses . | . . . . . . . . . . . . . . . . . . . Cargo Convoy Interrupts 1 | . . . . . . . . . . . . . . . . . . 1 Stealth | -11 -10 -10 -9 -9 -9 -8 -8 -7 -7 -7 -6 -5 -5 -5 -5 -4 -4 -3 --------- Run | Yrd Mat Min Mat Min Exi Min Mat Fac Was Fac Fac Fac Upp Upp Zhi Pro Fac Res Distress Signals 11 | . 1 . 4 . . . 3 2 . . 1 . . . . . . . Communications Jammed . | . . . . . . . . . . . . . . . . . . . Distress Signals . | . . . . . . . . . . . . . . . . . . . Times Spotted 272 | . 15 7 77 12 . . 62 20 5 2 26 3 3 10 . 6 1 23 Peak Tracking Total 10 | . 5 2 8 4 . . 7 8 6 2 5 2 3 9 . 4 1 10 Tactical Retreats 27 | . 1 3 3 . . . 2 7 . 1 4 1 1 . . . 1 3 Traps | -11 -10 -10 -9 -9 -9 -8 -8 -7 -7 -7 -6 -5 -5 -5 -5 -4 -4 -3 ------- Run | Yrd Mat Min Mat Min Exi Min Mat Fac Was Fac Fac Fac Upp Upp Zhi Pro Fac Res Traps Triggered 10 | . . . 5 . . . 2 3 . . . . . . . . . . Indirectly . | . . . . . . . . . . . . . . . . . . . Trap Hack Attempts . | . . . . . . . . . . . . . . . . . . . Triggered . | . . . . . . . . . . . . . . . . . . . Disarmed . | . . . . . . . . . . . . . . . . . . . Reprogrammed . | . . . . . . . . . . . . . . . . . . . Reused . | . . . . . . . . . . . . . . . . . . . Traps Extracted . | . . . . . . . . . . . . . . . . . . . Installed . | . . . . . . . . . . . . . . . . . . . Triggered 1 | . . . . . . . . . . . . . . . . . . 1 Machines | -11 -10 -10 -9 -9 -9 -8 -8 -7 -7 -7 -6 -5 -5 -5 -5 -4 -4 -3 ---------- Run | Yrd Mat Min Mat Min Exi Min Mat Fac Was Fac Fac Fac Upp Upp Zhi Pro Fac Res Machines Disabled 5 | . . . 2 1 . . . . . . 1 . . 1 . . . . Max in Single Turn 1 | . . . 1 1 . . . . . . 1 . . 1 . . . . Garrison Access 3 | . . . . . . . . . . 1 2 . . . . . . . Machines Repaired . | . . . . . . . . . . . . . . . . . . . Machines Dismantled . | . . . . . . . . . . . . . . . . . . . Machines Sabotaged . | . . . . . . . . . . . . . . . . . . . Overloaded Fab Kills . | . . . . . . . . . . . . . . . . . . . Hacking | -11 -10 -10 -9 -9 -9 -8 -8 -7 -7 -7 -6 -5 -5 -5 -5 -4 -4 -3 --------- Run | Yrd Mat Min Mat Min Exi Min Mat Fac Was Fac Fac Fac Upp Upp Zhi Pro Fac Res Machines Accessed 91 | . 5 1 14 . 1 . 6 12 . 12 21 10 1 1 . . 5 2 Terminals 60 | . 5 . 10 . . . 5 7 . 9 13 5 . . . . 4 2 Fabricators 12 | . . . . . . . . 3 . 2 4 3 . . . . . . Repair Stations 5 | . . . 2 . . . 1 . . . 1 1 . . . . . . Recycling Units 3 | . . . 2 . . . . 1 . . . . . . . . . . Scanalyzers 3 | . . . . . . . . . . . 1 1 . . . . 1 . Garrison Access 4 | . . . . . . . . 1 . 1 2 . . . . . . . Total Hacks 282 | . 15 1 41 . 1 . 18 27 . 50 74 37 1 1 . . 10 6 Successful 204 | . 5 1 26 . 1 . 6 16 . 38 67 35 1 1 . . 4 3 Failed 76 | . 10 . 15 . . . 12 11 . 11 6 2 . . . . 6 3 Catastrophic 9 | . 2 . 1 . . . 1 2 . 1 1 . . . . . 1 . Database Lockouts 2 | . . . . . . . . . . 1 1 . . . . . . . Manual 139 | . 13 . 24 . 1 . 12 12 . 24 27 17 . . . . 8 1 Terminals 204 | . 15 . 30 . . . 12 16 . 42 50 24 . . . . 9 6 Fabricators 33 | . . . . . . . . 7 . 7 10 9 . . . . . . Repair Stations 17 | . . . 7 . . . 6 . . . 2 2 . . . . . . Recycling Units 6 | . . . 4 . . . . 2 . . . . . . . . . . Scanalyzers 13 | . . . . . . . . . . . 10 2 . . . . 1 . Garrison Access 5 | . . . . . . . . 2 . 1 2 . . . . . . . Terminal Hacks 116 | . 4 1 12 . 1 . 1 6 . 29 37 18 1 1 . . 2 3 Record 13 | . . . . . . . . 1 . 4 4 2 . 1 . . 1 . Part Schematic 7 | . 1 . 1 . . . . 1 . . 1 3 . . . . . . Robot Analysis 11 | . . . 5 . . . . . . 2 4 . . . . . . . Prototype ID Bank 1 | . . . . . . . . . . . 1 . . . . . . . Open Door 2 | . . 1 . . . . . . . . . . 1 . . . . . Open DSF 1 | . . . . . . . . . . . . . . . . . . 1 Level Access Points 3 | . . . . . . . . . . 1 1 1 . . . . . . Branch Access Points 3 | . . . 1 . . . . . . 1 . 1 . . . . . . Emergency Access Points 2 | . 1 . . . . . . . . 1 . . . . . . . . Machine Index 2 | . . . . . . . . . . 1 . 1 . . . . . . Terminal Index 7 | . 1 . 1 . . . 1 1 . . 1 . . . . . 1 1 Fabricator Index 1 | . . . . . . . . . . . 1 . . . . . . . Alert Level 8 | . . . . . . . . 1 . 1 4 2 . . . . . . Unreport Threat 1 | . . . . . . . . . . . 1 . . . . . . . Locate Traps 15 | . . . 1 . . . . . . 5 6 2 . . . . . 1 Transport Status 2 | . . . . . . . . . . 1 1 . . . . . . . Extermination Status 1 | . . . . . . . . . . 1 . . . . . . . . Recall Investigation 8 | . . . . . . . . . . 2 3 3 . . . . . . Recall Extermination 4 | . . . . . . . . . . 1 2 1 . . . . . . Hauler Manifests 5 | . 1 . 1 . . . . 1 . 2 . . . . . . . . Registered Components 5 | . . . 1 . . . . 1 . 1 1 1 . . . . . . Registered Prototypes 2 | . . . . . . . . . . . 1 1 . . . . . . Zone Layout 11 | . . . 1 . . . . . . 5 5 . . . . . . . Derelict Proto ID Bank 1 | . . . . . 1 . . . . . . . . . . . . . Fabricator Hacks 25 | . . . . . . . . 6 . 5 8 6 . . . . . . Network Status 1 | . . . . . . . . 1 . . . . . . . . . . Load Schematic 13 | . . . . . . . . 3 . 3 4 3 . . . . . . Build 11 | . . . . . . . . 2 . 2 4 3 . . . . . . Repair Station Hacks 15 | . . . 7 . . . 4 . . . 2 2 . . . . . . Scan Component 8 | . . . 4 . . . 2 . . . 1 1 . . . . . . Repair 7 | . . . 3 . . . 2 . . . 1 1 . . . . . . Recycling Unit Hacks 3 | . . . 2 . . . . 1 . . . . . . . . . . Report Inventory 3 | . . . 2 . . . . 1 . . . . . . . . . . Scanalyzer 13 | . . . . . . . . . . . 10 2 . . . . 1 . Insert Component 5 | . . . . . . . . . . . 3 1 . . . . 1 . Analyze 8 | . . . . . . . . . . . 7 1 . . . . . . Garrison Access Hacks 3 | . . . . . . . . . . 1 2 . . . . . . . Seal Access 3 | . . . . . . . . . . 1 2 . . . . . . . Unauthorized Hacks 29 | . 1 . 5 . . . 1 3 . 3 8 7 . . . . 1 . Terminals 19 | . 1 . 3 . . . 1 1 . 2 6 4 . . . . 1 . Assimilate 5 | . . . . . . . . . . . 3 2 . . . . . . Botnet 5 | . . . 2 . . . . . . 1 2 . . . . . . . Operators 9 | . 1 . 1 . . . 1 1 . 1 1 2 . . . . 1 . Fabricators 7 | . . . . . . . . 1 . 1 2 3 . . . . . . Prioritize 5 | . . . . . . . . . . . 2 3 . . . . . . Recompile 2 | . . . . . . . . 1 . 1 . . . . . . . . Repair Stations . | . . . . . . . . . . . . . . . . . . . Recycling Units 3 | . . . 2 . . . . 1 . . . . . . . . . . Tunnel 3 | . . . 2 . . . . 1 . . . . . . . . . . Scanalyzers . | . . . . . . . . . . . . . . . . . . . Garrison Access . | . . . . . . . . . . . . . . . . . . . Data Cores Recovered 2 | . 1 . . . . . . . . . 1 . . . . . . . Used . | . . . . . . . . . . . . . . . . . . . Hacking Detections 69 | . 4 . 10 . . . 6 9 . 7 16 10 . . . . 5 2 Full Trace Events 17 | . 1 . 2 . . . 2 1 . 1 6 3 . . . . . 1 Feedback Events 1 | . . . . . . . . . . . 1 . . . . . . . Hackware Fried 1 | . . . . . . . . . . . 1 . . . . . . . Feedback Blocked . | . . . . . . . . . . . . . . . . . . . Robot Schematics Acquired . | . . . . . . . . . . . . . . . . . . . Robots Built . | . . . . . . . . . . . . . . . . . . . Authchips . | . . . . . . . . . . . . . . . . . . . Time . | . . . . . . . . . . . . . . . . . . . Total Robot Build Rating . | . . . . . . . . . . . . . . . . . . . Part Schematics Acquired 11 | . 1 . 1 . . . . 1 . . 4 4 . . . . . . Parts Built 12 | . . . . . . . . 2 . 2 4 4 . . . . . . Authchips 2 | . . . . . . . . 1 . 1 . . . . . . . . Time 515 | . . . . . . . . 106 . 70 276 63 . . . . . . Total Part Build Rating 63 | . . . . . . . . 12 . 12 18 21 . . . . . . Parts Repaired 7 | . . . 3 . . . 2 . . . 1 1 . . . . . . Time 242 | . . . 96 . . . 64 . . . 44 38 . . . . . . Parts Recycled . | . . . . . . . . . . . . . . . . . . . Recycled Matter . | . . . . . . . . . . . . . . . . . . . Retrieved Matter . | . . . . . . . . . . . . . . . . . . . Retrieved Components . | . . . . . . . . . . . . . . . . . . . Parts Scanalyzed 4 | . . . . . . . . . . . 3 1 . . . . . . Part Schematics Acquired 4 | . . . . . . . . . . . 3 1 . . . . . . Parts Damaged . | . . . . . . . . . . . . . . . . . . . Bothacking | -11 -10 -10 -9 -9 -9 -8 -8 -7 -7 -7 -6 -5 -5 -5 -5 -4 -4 -3 ------------ Run | Yrd Mat Min Mat Min Exi Min Mat Fac Was Fac Fac Fac Upp Upp Zhi Pro Fac Res Used RIF Installer . | . . . . . . . . . . . . . . . . . . . Robots Hacked 4 | . . . . . . . . 4 . . . . . . . . . . Non-combat 4 | . . . . . . . . 4 . . . . . . . . . . Combat . | . . . . . . . . . . . . . . . . . . . Robot Hacks Applied 4 | . . . . . . . . 4 . . . . . . . . . . no_distress 1 | . . . . . . . . 1 . . . . . . . . . . find_chute 3 | . . . . . . . . 3 . . . . . . . . . . Relay Couplers Released . | . . . . . . . . . . . . . . . . . . . Fabnet Peak Effective % . | . . . . . . . . . . . . . . . . . . . Robots Rewired . | . . . . . . . . . . . . . . . . . . . Allies Hacked . | . . . . . . . . . . . . . . . . . . . Hacks Repelled . | . . . . . . . . . . . . . . . . . . . Allies | -11 -10 -10 -9 -9 -9 -8 -8 -7 -7 -7 -6 -5 -5 -5 -5 -4 -4 -3 -------- Run | Yrd Mat Min Mat Min Exi Min Mat Fac Was Fac Fac Fac Upp Upp Zhi Pro Fac Res Total Allies 6 | . . . . 1 . . . . 1 . 3 1 . . . . . . Largest Group 1 | . . . . 1 . . . . 1 . 1 1 . . . . . . Highest-Rated Group 31 | . . . . 31 . . . . 31 . 26 26 . . . . . . Highest-Rated Ally 31 | . . . . 31 . . . . 31 . 26 26 . . . . . . Total Orders . | . . . . . . . . . . . . . . . . . . . Ally Attacks 8 | . . . . 8 . . . . . . . . . . . . . . Total Damage 105 | . . . . 105 . . . . . . . . . . . . . . Kills 2 | . . . . 2 . . . . . . . . . . . . . . Allies Corrupted . | . . . . . . . . . . . . . . . . . . . Allies Melted . | . . . . . . . . . . . . . . . . . . . Intel | -11 -10 -10 -9 -9 -9 -8 -8 -7 -7 -7 -6 -5 -5 -5 -5 -4 -4 -3 ------- Run | Yrd Mat Min Mat Min Exi Min Mat Fac Was Fac Fac Fac Upp Upp Zhi Pro Fac Res Robot Analysis Total 11 | . . . 5 . . . . . . 2 4 . . . . . . . Derelict Logs Recovered 7 | . . . . 2 . . . . . . . . 2 2 . 1 . . Drone Launches 12 | . . . . . . . . . . . . . . . . . . 12 Drone Recoveries 12 | . . . . . . . . . . . . . . . . . . 12 Exploration | -11 -10 -10 -9 -9 -9 -8 -8 -7 -7 -7 -6 -5 -5 -5 -5 -4 -4 -3 ------------- Run | Yrd Mat Min Mat Min Exi Min Mat Fac Was Fac Fac Fac Upp Upp Zhi Pro Fac Res Turns Passed 18498 | 282 1543 1465 5026 1010 498 104 2937 786 26 494 1822 890 79 154 1 134 423 824 Spaces Moved 16084 | 144 649 371 1724 380 208 44 946 1680 89 1272 3853 1564 303 494 4 446 998 915 Core 49 | 1 . . . . . . . 5 . . . . . . . . . 43 Treads 4470 | 143 649 371 1724 380 208 44 946 5 . . . . . . . . . . Legs 2 | . . . . . . . . . . . . . . . . . . 2 Wheels . | . . . . . . . . . . . . . . . . . . . Hover 341 | . . . . . . . . . . . . . . . . . . 341 Flight 11222 | . . . . . . . . 1670 89 1272 3853 1564 303 494 4 446 998 529 Fastest Speed 14 | 50 160 320 240 240 240 240 240 26 26 26 17 26 14 14 26 17 24 24 Average Speed 86 | 159 215 320 240 240 240 240 240 27 26 26 27 26 24 25 26 26 24 36 Slowest Speed 560 | 160 320 320 560 240 240 240 240 240 26 27 28 27 26 26 26 91 24 260 Overloaded Moves 74 | . . . . . . . . . . . 14 . 40 13 . 7 . . Propulsion Burnouts . | . . . . . . . . . . . . . . . . . . . Robots Hopped 43 | . . . . . . . . 4 8 . 18 9 . . . . 4 . Cave-ins Triggered . | . . . . . . . . . . . . . . . . . . . Exploration Rate (%) 54 | 6 97 86 99 97 61 24 68 40 84 34 79 28 65 60 7 69 30 10 Regions Visited 18 Branch Regions 8 Pre-discovered Areas 6 | . . . 2 1 . . . 1 . . . . . 2 . . . . Known Exits Taken 5 | . . . 1 . . . . . . 1 1 1 . . . 1 . . Unknown Exits Taken 11 | 1 1 1 . 1 1 1 1 . . . . . 1 1 1 . 1 . Scrap Searched 9 | . . 1 . 1 . . . . . . . . . 4 . 3 . . Spaces Dug 187 | . 4 . 4 . . . 16 20 . 4 25 35 . 41 . 12 14 12 Terrain Destroyed 369 | . 4 . 63 10 . . 16 20 . 4 40 35 . 95 . 23 14 45 Melee 105 | . . . . . . . 1 20 . 4 25 35 . . . . 14 6 Projectile 39 | . 4 . 24 5 . . . . . . . . . . . . . 6 AOE 225 | . . . 39 5 . . 15 . . . 15 . . 95 . 23 . 33 Terrain Rammed . | . . . . . . . . . . . . . . . . . . . Walls Destroyed . | . . . . . . . . . . . . . . . . . . . Machines Disabled . | . . . . . . . . . . . . . . . . . . . Actions | -11 -10 -10 -9 -9 -9 -8 -8 -7 -7 -7 -6 -5 -5 -5 -5 -4 -4 -3 --------- Run | Yrd Mat Min Mat Min Exi Min Mat Fac Was Fac Fac Fac Upp Upp Zhi Pro Fac Res Total 19574 | 167 714 622 2360 443 208 43 1362 1934 82 1418 4558 1972 307 509 3 456 1154 1262 Wait 2421 | 2 2 228 381 33 . . 202 138 . 121 646 362 . . . 3 138 165 Move 15986 | 143 648 370 1723 379 207 43 945 1672 76 1271 3817 1545 302 493 3 445 989 915 Hop 38 | . . . . . . . . 4 4 . 17 9 . . . . 4 . Pick Up 110 | 2 13 2 23 1 1 . 14 10 1 8 12 5 3 2 . . 1 12 Fast Attach 66 | 7 . 2 13 1 . . 4 12 . 1 . 1 . . . . 4 21 Attach 62 | . 1 . 8 1 . . 6 15 . 2 6 3 2 1 . 2 2 13 Detach 18 | . 1 2 2 1 . . . . . . 1 . . 1 . 2 1 7 Swap 90 | . 6 5 26 6 . . 16 4 1 4 9 3 . . . . . 10 Drop 131 | . 3 . 35 1 . . 19 28 . 7 12 6 . 2 . . 1 17 Fire 394 | 13 37 13 142 17 . . 140 . . . 2 . . 9 . 2 . 19 Melee 229 | . . . 4 . . . 1 51 . 4 36 38 . 1 . 2 14 78 Ram 5 | . . . . . . . . . . . . . . . . . . 5 Kick . | . . . . . . . . . . . . . . . . . . . Crush 24 | . 3 . 3 3 . . 15 . . . . . . . . . . . Escape Stasis . | . . . . . . . . . . . . . . . . . . . Rewire . | . . . . . . . . . . . . . . . . . . . Trap . | . . . . . . . . . . . . . . . . . . . Miscellaneous . | . . . . . . . . . . . . . . . . . . . Route ------- -11/Scrapyard -10/Materials (discovered 4 exits: *Mat x2 / *Min x2) -10/Mines (discovered 2 exits: *Mat x2) -9/Materials (discovered 5 exits: *Mat x3 / *Min / *Sto) -9/Mines (discovered 4 exits: *Mat x2 / *Exi / [*Zio]) -9/Exiles -8/Mines -8/Materials (discovered 2 exits: *Fac x2) -7/Factory (discovered 2 exits: *Fac x2) -7/Waste -7/Factory (discovered 6 exits: *Fac x4 / *Low x2) -6/Factory (discovered 6 exits: *Fac x4 / [*Low x2]) -5/Factory (discovered 6 exits: Fac x4 / *Upp x2) -5/Upper Caves -5/Upper Caves -5/Zhirov -4/Proximity Caves -4/Factory (discovered 5 exits: *Res x2 / [*Upp] / Ext / Arm) -3/Research (discovered 1 exit: Tes) History --------- Turn | Location | Event 25 | -11/Scrapyard | Discovered new exit (range 16) 283 | -11/Scrapyard | Entered Materials 303 | -10/Materials | Build established: Mutant 363 | -10/Materials | Discovered new exit (range 9) 1238 | -10/Materials | Discovered new exit (range 3) 1427 | -10/Materials | Discovered new exit (range 14) 1654 | -10/Materials | Discovered new exit (range 8) 1826 | -10/Materials | Entered Mines 1837 | -10/Mines | Met a Derelict bent on vengeance 1849 | -10/Mines | Discovered new exit (range 8) 1868 | -10/Mines | Joined a pair of Derelicts in attacking an 0b10 outpost 2063 | -10/Mines | Found the Drone Emporium 2076 | -10/Mines | Found Prototype Device 2076 | -10/Mines | Identified Thief Drone Bay 2188 | -10/Mines | Assembled infested the area 2880 | -10/Mines | Build established: Scavenger-Mutant 3195 | -10/Mines | Discovered new exit (range 5) 3291 | -10/Mines | Entered Materials 3291 | -9/Materials | Evolved 2 slots: Propulsion x1, Utility x1 3619 | -9/Materials | Build established: Mutant 3957 | -9/Materials | Discovered new exit (range 8) 4529 | -9/Materials | Discovered new exit (range 5) 4677 | -9/Materials | Build established: Scavenger-Mutant 5154 | -9/Materials | Build established: Mutant 5424 | -9/Materials | Discovered new exit (range 16) 5569 | -9/Materials | Repaired Med. Armor Plating 6156 | -9/Materials | Identified exit to Mines 6156 | -9/Materials | Identified exit to Storage 6644 | -9/Materials | Discovered new exit (range 16) 7034 | -9/Materials | Repaired Med. Armor Plating 7112 | -9/Materials | Build established: Scavenger-Mutant 7291 | -9/Materials | First assault squad dispatched 7316 | -9/Materials | Core integrity fell below 50% 7351 | -9/Materials | Destroyed 10 combat bots 7955 | -9/Materials | Repaired Med. Armor Plating 8115 | -9/Materials | Sterilization system engaged 8115 | -9/Materials | Non-combat units ordered to evacuate 8215 | -9/Materials | Combat units ordered to evacuate 8317 | -9/Materials | Entered Mines 8377 | -9/Mines | Received a Mining Laser from a helpful Derelict 8415 | -9/Mines | Build established: Mutant 8769 | -9/Mines | Learned Materials stockpile data 8907 | -9/Mines | Build established: Scavenger-Mutant 9207 | -9/Mines | Discovered new exit (range 14) 9258 | -9/Mines | Discovered new exit (range 11) 9267 | -9/Mines | Learned location of Recycling (-9) 9271 | -9/Mines | A Derelict revealed a hidden shortcut to a safe place 9318 | -9/Mines | Deemed a non-threat by the Exiles lab entrance 9318 | -9/Mines | Discovered new exit (range 5) 9327 | -9/Mines | Entered Exiles 9385 | -9/Exiles | Met 8R-AWN 9423 | -9/Exiles | Met EX-HEX 9493 | -9/Exiles | Met EX-BIN 9524 | -9/Exiles | Aligned with FarCom system 9527 | -9/Exiles | Given EX-Vault access code 9582 | -9/Exiles | Opened EX-Vault 9599 | -9/Exiles | Found 0b10 Alert Chip 9645 | -9/Exiles | Warned to stay clear of 0b10 Research branches 9717 | -9/Exiles | Met EX-DEC 9806 | -9/Exiles | Discovered new exit (range 10) 9825 | -9/Exiles | Left Exiles lab with 0b10 Alert Chip 9825 | -9/Exiles | Entered Mines 9921 | -8/Mines | Discovered new exit (range 3) 9929 | -8/Mines | Entered Materials 9929 | -8/Materials | Evolved 2 slots: Propulsion x1, Utility x1 10603 | -8/Materials | Discovered new exit (range 10) 10674 | -8/Materials | Found Prototype Launcher 10674 | -8/Materials | Identified Rocket Array 10844 | -8/Materials | Repaired Rocket Launcher 10938 | -8/Materials | Repaired Med. Armor Plating 12803 | -8/Materials | Discovered new exit (range 14) 12866 | -8/Materials | Entered Factory 12866 | -7/Factory | Evolved 2 slots: Utility x2 12901 | -7/Factory | Discovered new exit (range 6) 13032 | -7/Factory | Lost 9 parts (1p4n4u) 13287 | -7/Factory | Fabricated Adv. Hacking Suite (x1) 13342 | -7/Factory | Fabricated Adv. Hacking Suite? 13456 | -7/Factory | Discovered new exit (range 19) 13652 | -7/Factory | Manually triggered Chute Trap 13652 | -7/Factory | Sucked down chute 13652 | -7/Factory | Entered Waste 13653 | -7/Waste | Met a frightened Derelict 13661 | -7/Waste | Spotted C-40 Crusher 13666 | -7/Waste | Spotted C-40 Crusher 13667 | -7/Waste | EMP discharged 13669 | -7/Waste | Spotted C-40 Crusher 13669 | -7/Waste | Spotted C-40 Crusher 13671 | -7/Waste | Spotted C-40 Crusher 13672 | -7/Waste | Spotted C-40 Crusher 13675 | -7/Waste | Discovered new exit (range 12) 13678 | -7/Waste | Entered Factory 13690 | -7/Factory | Discovered new exit (range 15) 13787 | -7/Factory | Build established: Hacker-Sprinter 13823 | -7/Factory | Central database locked down 13823 | -7/Factory | Identified exit to Factory 13867 | -7/Factory | Identified exit to Lower Caves 14033 | -7/Factory | Fabricated Adv. Hacking Suite? 14096 | -7/Factory | Fabricated Adv. Hacking Suite? 14172 | -7/Factory | Entered another Factory area 14172 | -6/Factory | Evolved 2 slots: Utility x2 14290 | -6/Factory | Identified exit to Factory 14396 | -6/Factory | Discovered new exit (range 8) 14462 | -6/Factory | Build established: Wizard-Sprinter 14603 | -6/Factory | Fabricated Cld. VTOL Module (x1) 14607 | -6/Factory | Discovered new exit (range 13) 14799 | -6/Factory | Central database locked down 14875 | -6/Factory | Repaired Spear? 15353 | -6/Factory | Fabricated Cld. VTOL Module (x1) 15498 | -6/Factory | Fabricated Cld. VTOL Module (x1) 15526 | -6/Factory | Adv. Hacking Suite fried by hacking feedback 15689 | -6/Factory | Spotted B-75 Beast 15747 | -6/Factory | Fabricated Adv. Hacking Suite? 15994 | -6/Factory | Entered another Factory area 15994 | -5/Factory | Evolved 2 slots: Utility x2 16004 | -5/Factory | Identified exit to Factory 16056 | -5/Factory | Repaired Imp. Light Armor Plating 16193 | -5/Factory | Fabricated Cld. VTOL Module? 16325 | -5/Factory | Identified exit to Upper Caves 16597 | -5/Factory | Fabricated Mic. Fission Core (x2) 16883 | -5/Factory | Fabricated Lrn. Missile Launcher (x1) 16884 | -5/Factory | Entered Upper Caves 16916 | -5/Upper Caves | Lost 3 parts (3u) 16926 | -5/Upper Caves | Learned location of 1 exit from Factory 16941 | -5/Upper Caves | Encountered a Warlord checkpoint 16954 | -5/Upper Caves | Discovered new exit (range 18) 16957 | -5/Upper Caves | Learned location of 1 exit from Factory 16963 | -5/Upper Caves | Entered another Upper Caves area 16966 | -5/Upper Caves | Learned location of Warlord (-4) 17031 | -5/Upper Caves | Found Alien Artifact 17083 | -5/Upper Caves | Attracted the attention of an 0b10 outpost 17111 | -5/Upper Caves | Discovered new exit (range 15) 17117 | -5/Upper Caves | Entered Zhirov 17117 | -5/Zhirov | Discovered new exit (range 3) 17118 | -5/Zhirov | Entered Proximity Caves 17226 | -4/Proximity Caves | Learned location of 1 exit from Research 17247 | -4/Proximity Caves | Spotted B-86 Titan 17248 | -4/Proximity Caves | Discovered exit to Factory (range 11) 17252 | -4/Proximity Caves | Entered Factory 17252 | -4/Factory | Evolved 2 slots: Propulsion x1, Utility x1 17253 | -4/Factory | Identified exit to Extension 17253 | -4/Factory | Identified exit to Armory 17281 | -4/Factory | Identified Dimensional Node Initializer 17295 | -4/Factory | Discovered new exit (range 21) 17295 | -4/Factory | Discovered new exit (range 22) 17540 | -4/Factory | Discovered new exit (range 13) 17621 | -4/Factory | Build established: Wizard-Ninja 17675 | -4/Factory | Entered Research 17675 | -3/Research | Evolved 2 slots: Power x1, Propulsion x1 17676 | -3/Research | Identified exit to Testing 17693 | -3/Research | Spotted B-86 Titan 17835 | -3/Research | Found Gamma Bomb Array 17845 | -3/Research | Lost 4 parts (1n1u2w) 18162 | -3/Research | Lost 12 parts (1p4n7u) 18174 | -3/Research | Initialized slip node 18420 | -3/Research | System corruption reached 10% 18432 | -3/Research | Cargo convoy interrupted 18475 | -3/Research | Released all parts (12) 18476 | -3/Research | Core integrity fell below 50% 18483 | -3/Research | Core integrity fell below 20% 18499 | -3/Research | Destroyed by P-80 Master with Gamma Rifle Last Messages --------------- 18473_ Imp. Antigrav System destroyed. 18473_ Gamma Bomb Array destroyed. 18475_ Released Fusion Compressor. 18475_ Released Antigrav System. 18475_ Released Adv. Heat Sink. 18475_ Released Imp. Antigrav System. 18475_ Released Machine Analyzer. 18475_ Released Enh. Optical Array. 18475_ Released Imp. Hacking Suite. 18475_ Released Lrg. Storage Unit. 18475_ Released Spear. 18475_ Released Adv. Drone Bay. 18476_ Acquired Scythe. 18481_ K-01 Serf collects debris. 18481_ P-80 Master resets G-67 Veteran, system corruption cleaned. 18485_ Scythe destroyed. 18490_ YIYIJ1# %XCZ7S|DO LVFK>HY&E IBIA 0RRZ8I& 18491_ K-01 Serf destroyed. 18495_ Connecting with Repair Station... 18498_ Slammed into P-80 Master. Map ----- +----------------------------------------------------+ | ############## ###########????????????????????? | | ????????????## # ##????????????????????? | | ????????????## # ##????????????????????? | | ????????????## # """ ##????????????????????? | | ????????????## + """ ##????????????????????? | | ????????????## # """ ##????????????????????? | | ????????????## # ##????????????????????? | | ???????????? # # ! ##????????????????????? | | ???????????? # # ##????????????????????? | | ???????????? # # * ##????????????????????? | | # ?????????? # g###########????????????????????? | | # ?????????? # g ####????????????????????? | | # ?????????? + g #???????????????????????? | | # ?????????? # #??#####????????????????? | | # ?????????? # #? """"" #?????????????? | | # ?????????? ##+##### #? ""T"" #?????????????? | | # ?????????? # # # #?????????????? | | # ????????????? ???# # #?????????????? | | # ????????????? ???+ + #?????????????? | | ##????????????? ???# p # #?????????????? | | ######????????? ???# # #?????????????? | | ######??????????????# #? #?????????????? | | ##??????????????# ###########?????????????? | | ########## ???? # # #??????????????? | | ########## # ^ #p #??????????????? | | ^ + # @ """#??????????????? | | +############# + p# """#??????????????? | | ######## ???? # p # R"#??????????????? | | ??????????????????# # """#??????????????? | | """????????????????# # "" #??????????????? | | R"????????????????# # Y #??????????????? | | """????????????????# ! # ! #?????????????? | | ????????????????+ =%*###########?????????????? | | ???????????????# ????????????????????????? | | ???????????????# ????????????????????????? | | #?????????????# ????????????????????????? | | #######?????????????# ????????????????????????? | | #######?????????????# ????????????????????????? | | ????????????????????# ????????????????????????? | | ?????????????????????? ????????????????????????? | | ?????????????????????????????????????????????????? | | ?????????????????????????????????????????????????? | | ?????????????????????????????????????????????????? | | ?????????????????????????????????????????????????? | | ?????????????????????????????????????????????????? | | ?????????????????????????????????????????????????? | | ?????????????????????????????????????????????????? | | ?????????????????????????????????????????????????? | | ?????????????????????????????????????????????????? | | ?????????????????????????????????????????????????? | +----------------------------------------------------+ Best States ------------- Heat Dissipation 103 Energy Generation 39 Energy Capacity 265 Matter Stores 300 Matter Capacity 300 Sight Range 22 Terrain Scan Range 16 Terrain Scan Density 210 Corruption Containment 8 Armor Coverage 525 Utility Shielding 66 Evasion (%) 67 Recoil Reduction 4 Offensive Hacking 78 Defensive Hacking 20 Authchip Count 1 Item Schematics ----------------- Med. Storage Unit | -10/Materials | Hacked Utility Shielding | -9/Materials | Hacked Adv. Hacking Suite | -7/Factory | Hacked Cld. VTOL Module | -6/Factory | Hacked Biomechanical Wings | -6/Factory | Scanalyzed Lrn. Missile Launcher | -6/Factory | Scanalyzed Spear | -6/Factory | Scanalyzed Adv. System Shield | -5/Factory | Hacked Imp. Utility Shielding | -5/Factory | Scanalyzed Cld. Plasma Cannon | -5/Factory | Hacked Mic. Fission Core | -5/Factory | Hacked Robot Schematics ------------------ None Fabricated ------------ Adv. Hacking Suite | x1 | -7/Factory | Authchip Adv. Hacking Suite | x1 | -7/Factory Adv. Hacking Suite | x1 | -7/Factory | Authchip Adv. Hacking Suite | x1 | -7/Factory Cld. VTOL Module | x1 | -6/Factory Cld. VTOL Module | x1 | -6/Factory Cld. VTOL Module | x1 | -6/Factory Adv. Hacking Suite | x1 | -6/Factory Cld. VTOL Module | x1 | -5/Factory Mic. Fission Core | x2 | -5/Factory Lrn. Missile Launcher | x1 | -5/Factory Alien Tech Used ----------------- Dimensional Node Initializer Achievements -------------- Alien Tech Armchair Analyst Leap Before You Look Omniscient Cartographer Production Line Quick And Dirty Release The Drones! Wheee! Whoosh! Challenges ------------ None Game ------ Seed CloakingWeaponsLog Manual? 0 Play Time 04:54:29 Cumulative 21.2 hours Start 2024.04.06 @ 19:56:44 End 2024.04.09 @ 22:46:17 Sessions 5 Manual Loads 0 Difficulty Rogue Special Mode None Game No. 13 Rogue 13 Adventurer 0 Explorer 0 Win Type - Total 0 Types 0/0/0/0/0/0/0/0/0 Lore% 22 Gallery% 18 Achievement% 24 Wizard Run 0 Options --------- Layout 0 ASCII 0 Keyboard 0 Movement Numpad Keybinds 0 Fullscreen 1 Font 18/SmallcapsGlow Map View 76x50 Zoom Use 0% Tactical HUD 1 Map Filters NONE Filters NONE Steam 1 RUN: 7f08cee3-c411-4d30-a887-991ccf5f968a